lending/lending_fUSD_20251016
["ID","MTS","AMOUNT","RATE_DAILY","PERIOD"]
[391555256,1760650240031,-158.63421566,0.00017191,2]
[391555258,1760650240040,-543.49,0.00017682,2]
[391555260,1760650240050,-1319.92,0.00017728,2]
[391555262,1760650240059,-6639.18,0.00017728,2]
[391555264,1760650240068,-5954.99,0.00017728,2]
[391555266,1760650240078,-239.87095972,0.00018089,2]
[391555268,1760650240087,-543.49,0.00018389,2]
[391555270,1760650240096,-475.57272817,0.00018544,2]
[391555272,1760650240106,-4372.60693564,0.00018589,2]
[391555274,1760650240116,-562.88,0.00018593,30]
[391555276,1760650240126,-150.98,0.000188,2]
[391555278,1760650240135,-150.98,0.000188,2]
[391555280,1760650240144,-150.98,0.000188,2]
[391555282,1760650240153,-150.98,0.000188,2]
[391555284,1760650240162,-150.98,0.000188,2]
[391555286,1760650240172,-150.98,0.000188,2]
[391555288,1760650240181,-150.98,0.000188,2]
[391555290,1760650240190,-150.98,0.000188,2]
[391555292,1760650240199,-150.98,0.000188,2]
[391555294,1760650240208,-150.98,0.000188,2]
[391555296,1760650240218,-199636.55672754,0.00019,2]
[391555298,1760650240227,-2866.27040116,0.0001905,2]
[391555300,1760650240237,-543.49,0.00019097,2]
[391555302,1760650240246,-289.42387655,0.00019119,2]
[391555304,1760650240256,-158.63421566,0.00019121,2]
[391555306,1760650240266,-166.66,0.00019148,2]
[391555308,1760650240276,-254.37551776,0.00019271,2]
[391555310,1760650240287,-227.15500605,0.00019365,2]
[391555312,1760650240296,-166.66,0.00019551,2]
[391555314,1760650240305,-543.49,0.00019804,2]
[391555316,1760650240314,-11176.9344,0.0001995,15]
[391555318,1760650240324,-166.66,0.00019955,2]
[391555320,1760650240334,-8194.763179,0.0002,2]
[391555322,1760650240343,-339.22632658,0.00020148,2]
[391555324,1760650240352,-441.88,0.00020187,2]
[391555326,1760650240363,-4372.60693564,0.00020203,2]
[391555328,1760650240372,-166.66,0.00020358,2]
[391555331,1760650240382,-543.49,0.00020511,2]
[391555333,1760650240392,-190.95,0.00020526,2]
[391555367,1760650240699,-166.66,0.00020761,2]
[391555369,1760650240710,-1999.999999,0.00021,2]
[391555371,1760650240719,-158.63421566,0.00021052,2]
[391555373,1760650240729,-166.66,0.00021164,2]
[391555375,1760650240739,-389.24339773,0.00021178,2]
[391555378,1760650240748,-543.49,0.00021218,2]
[391555380,1760650240758,-1124.961432,0.000215,2]
[391555382,1760650240769,-227.15500605,0.00021598,2]
[391555384,1760650240778,-4372.60693564,0.00021818,2]
[391555386,1760650240788,-4056.70837557,0.0002192,4]
[391555388,1760650240797,-4056.70837557,0.0002192,4]
[391555390,1760650240806,-4056.70837557,0.0002192,4]
[391555392,1760650240815,-4056.70837557,0.0002192,4]
[391555394,1760650240824,-4056.70837557,0.0002192,4]
[391555396,1760650240833,-4056.70837557,0.0002192,4]
[391555398,1760650240843,-4056.70837557,0.0002192,4]
[391555400,1760650240852,-4056.70837557,0.0002192,4]
[391555402,1760650240862,-4056.70837557,0.0002192,4]
[391555404,1760650240871,-4056.70837557,0.0002192,4]
[391555406,1760650240880,-4056.70837557,0.0002192,4]
[391555408,1760650240889,-4056.70837557,0.0002192,4]
[391555410,1760650240898,-4056.70837557,0.0002192,4]
[391555412,1760650240907,-4056.70837557,0.0002192,4]
[391555414,1760650240916,-4056.70837557,0.0002192,4]
[391555416,1760650240925,-4056.70837557,0.0002192,4]
[391555418,1760650240934,-4056.70837557,0.0002192,4]
[391555420,1760650240943,-4056.70837557,0.0002192,4]
[391555421,1760650240953,-4056.70837557,0.0002192,4]
[391555423,1760650240962,-4056.7,0.0002192,4]
[391555425,1760650240971,-543.49,0.00021926,2]
[391555427,1760650240981,-42804.95,0.00022,7]
[391555429,1760650240990,-6121.46699584,0.00022,4]
[391555431,1760650240999,-5512.0,0.000221,3]
[391555434,1760650241009,-439.44887095,0.00022208,2]
[391555435,1760650241019,-500.0,0.00022356,2]
[391555437,1760650241028,-5512.0,0.000226,5]
[391555439,1760650241038,-543.49,0.00022633,2]
[391555441,1760650241047,-15271.185296,0.00022642,7]
[391555443,1760650241056,-817.80872928,0.00022785,2]
[391555445,1760650241066,-2058.12433488,0.00022833,2]
[391555447,1760650241075,-7983.2756736,0.00022833,2]
[391555449,1760650241084,-354.49382945,0.00022833,2]
[391555451,1760650241093,-736.2811539,0.00022883,2]
[391555453,1760650241102,-158.63421566,0.00022983,2]
[391555455,1760650241111,-666.0,0.00023017,3]
[391555457,1760650241120,-254.37551776,0.00023083,2]
[391555459,1760650241130,-489.82231697,0.00023238,2]
[391555461,1760650241139,-200.0,0.00023286,2]
[391555463,1760650241150,-600.0,0.00023286,2]
[391555465,1760650241159,-151.0,0.00023286,2]
[391555467,1760650241168,-151.0,0.00023286,2]
[391555469,1760650241177,-151.0,0.00023286,2]
[391555471,1760650241186,-151.0,0.00023286,2]
[391555473,1760650241195,-151.0,0.00023286,2]
[391555475,1760650241205,-151.0,0.00023286,2]
[391555477,1760650241214,-151.0,0.00023286,2]
[391555479,1760650241224,-151.0,0.00023286,2]
[391555481,1760650241233,-151.0,0.00023286,2]
[391555483,1760650241242,-200.0,0.00023286,2]
[391555485,1760650241251,-151.0,0.00023286,2]
[391555487,1760650241261,-151.0,0.00023286,2]
[391555489,1760650241272,-151.0,0.00023286,2]
[391555491,1760650241281,-151.0,0.00023286,2]
[391555493,1760650241290,-151.0,0.00023286,2]
[391555495,1760650241300,-227.74,0.00023286,2]
[391555497,1760650241309,-543.49,0.0002334,2]
[391555499,1760650241318,-4372.60693564,0.00023432,2]
[391555501,1760650241328,-562.88,0.00023574,30]
[391555503,1760650241338,-227.15500605,0.00023831,2]
[391555505,1760650241347,-543.49,0.00024048,2]
[391555507,1760650241357,-301.97,0.000241,2]
[391555509,1760650241366,-305.2,0.000241,2]
[391555511,1760650241375,-540.34736005,0.00024268,2]
[391555513,1760650241385,-303.88,0.000243,2]
[391555515,1760650241394,-305.3,0.000243,2]
[391555517,1760650241404,-302.63,0.000243,2]
[391555519,1760650241414,-305.32,0.000245,2]
[391555521,1760650241424,-301.22,0.000245,2]
[391555524,1760650241434,-1000.0,0.00024658,2]
[391555525,1760650241443,-304.58,0.00024698,2]
[391555527,1760650241452,-302.09,0.00024698,2]
[391555530,1760650241461,-301.87,0.00024699,2]
[391555531,1760650241470,-303.55,0.000247,2]
[391555534,1760650241480,-304.85,0.000247,2]
[391555536,1760650241489,-300.99,0.000247,2]
[391555537,1760650241498,-302.37,0.000247,2]
[391555539,1760650241507,-301.51,0.000247,2]
[391555542,1760650241517,-543.49,0.00024755,2]
[391555544,1760650241526,-42804.95,0.000248,7]
[391555545,1760650241536,-586903.203576,0.000248,3]
[391555547,1760650241545,-9465.65287632,0.00024871,4]
[391555549,1760650241555,-151.0,0.00024872,7]
[391555551,1760650241564,-151.0,0.00024872,7]
[391555553,1760650241574,-151.0,0.00024872,7]
[391555555,1760650241583,-151.0,0.00024872,7]
[391555558,1760650241594,-151.0,0.00024872,7]
[391555560,1760650241603,-151.0,0.00024872,7]
[391555561,1760650241612,-151.0,0.00024872,7]
[391555563,1760650241621,-151.0,0.00024872,7]
[391555565,1760650241631,-151.0,0.00024872,7]
[391555568,1760650241640,-151.0,0.00024872,7]
[391555570,1760650241649,-303.46,0.00024899,2]
[391555572,1760650241658,-302.4,0.000249,2]
[391555574,1760650241668,-304.64,0.000249,2]
[391555575,1760650241677,-182911.48946712,0.000249,3]
[391555580,1760650241716,-3723.60438555,0.000249,3]
[391555582,1760650241729,-444.26999979,0.000249,3]
[391555585,1760650241740,-2164.7983674,0.000249,3]
[391555654,1760650243187,-2034.18511224,0.000149,2]
[391555656,1760650243198,-269.48637414,0.000149,2]
[391555658,1760650243210,-3341.97309157,0.000149,2]
[391555660,1760650243220,-151.0,0.00024872,7]
[391555663,1760650243229,-424080.20048314,0.000249,3]
[391555665,1760650243238,-151.0,0.000249,7]
[391555667,1760650243247,-256.163549,0.000249,7]
[391555669,1760650243256,-151.0,0.000249,7]
[391555671,1760650243266,-151.0,0.000249,7]
[391555673,1760650243275,-151.0,0.000249,7]
[391555675,1760650243284,-151.0,0.000249,7]
[391555677,1760650243294,-151.0,0.000249,7]
[391555679,1760650243303,-151.0,0.000249,7]
[391555681,1760650243311,-151.0,0.000249,7]
[391555683,1760650243320,-151.0,0.000249,7]
[391555684,1760650243329,-151.0,0.000249,7]
[391555685,1760650243338,-151.0,0.000249,7]
[391555686,1760650243347,-151.0,0.000249,7]
[391555687,1760650243357,-280.439262,0.000249,7]
[391555689,1760650243366,-160.420843,0.000249,7]
[391555691,1760650243375,-151.0,0.000249,7]
[391555692,1760650243384,-158.63421566,0.00024913,2]
[391555693,1760650243393,-500.0,0.00024932,2]
[391555694,1760650243403,-21680.2562477,0.00025,2]
[391555695,1760650243415,-260.95,0.00025,2]
[391555696,1760650245838,-5645.6445779,0.00014907,2]
[391555697,1760650245847,-188.024,0.00024194,2]
[391555698,1760650245858,-28753.51586528,0.00025,2]
[391555699,1760650245867,-5174.14083778,0.00025,7]
[391555700,1760650245953,-1701.43176664,0.00025,7]
[391555755,1760650402939,2000.0,0.00027029,120]
[391555756,1760650423843,500.0,0.00026293,120]
[391555784,1760651431803,-190.47,0.00016712,2]
[391555785,1760651431812,-11063.14437235,0.000193,2]
[391555786,1760651431865,-19601.85562765,0.000193,2]
[391555787,1760651431876,-475.57272817,0.000195,2]
[391555788,1760651431885,-276.23,0.00019707,2]
[391555789,1760651431894,-5512.0,0.000198,3]
[391555790,1760651431903,-2000.000001,0.0002,2]
[391555791,1760651431912,-2000.0,0.0002,2]
[391555792,1760651431921,-5512.0,0.000202,5]
[391555793,1760651431931,-181.83440717,0.00021365,2]
[391555794,1760651431941,-7132.03,0.0002167,2]
[391555795,1760651431950,-299.99,0.0002167,7]
[391555796,1760651431959,-866.76,0.0002167,2]
[391555797,1760651431968,-150.99,0.0002167,2]
[391555798,1760651431978,-999.99,0.0002167,2]
[391555799,1760651431990,-161.7355971,0.00021851,2]
[391555800,1760651431999,-244.5473515,0.00022197,2]
[391555801,1760651432012,-307.73739778,0.00023029,2]
[391555802,1760651432021,-5000.0,0.00023716,2]
[391555803,1760651432031,-371.31026919,0.00023861,2]
[391555804,1760651432040,-312.5,0.00023903,2]
[391555805,1760651432051,-150.0,0.0002393,2]
[391555806,1760651432060,-875.55980772,0.00023938,2]
[391555807,1760651432070,-161.43,0.00024014,2]
[391555808,1760651432079,-875.55980772,0.00024135,2]
[391555809,1760651432091,-875.55980772,0.00024419,2]
[391555810,1760651432101,-1096.61970786,0.000245,5]
[391555811,1760651432111,-1137.88239571,0.000245,5]
[391555812,1760651432131,-1058.85686302,0.000245,5]
[391555813,1760651432140,-1000.05007965,0.000245,5]
[391555814,1760651432149,-1055.42424305,0.000245,5]
[391555815,1760651432159,-1048.26500417,0.000245,5]
[391555816,1760651432168,-1100.60771428,0.000245,5]
[391555817,1760651432178,-1118.01354706,0.000245,5]
[391555818,1760651432187,-1046.32459357,0.000245,5]
[391555819,1760651432197,-1702.69622385,0.000245,5]
[391555820,1760651432207,-151.34,0.00024594,2]
[391555821,1760651432216,-335.451212,0.00024614,2]
[391555822,1760651432226,-151.53,0.00024658,2]
[391555823,1760651432236,-435.20327397,0.00024694,2]
[391555824,1760651432246,-2000.0,0.000247,2]
[391555825,1760651432255,-200.0,0.00024757,2]
[391555826,1760651432264,-151.0,0.00024757,2]
[391555827,1760651432275,-226.31638113,0.00024757,2]
[391555828,1760651432285,-21338.66138106,0.00024772,2]
[391555830,1760651432299,-664.70252939,0.00024772,2]
[391555831,1760651432310,-463.32343304,0.00024772,2]
[391555832,1760651432325,-258.87161287,0.00024772,2]
[391555833,1760651432335,-2987.93745374,0.00024772,2]
[391555834,1760651432347,-1293.3732384,0.00024772,2]
[391555835,1760651432355,-1480.9223506,0.00024772,2]
[391555836,1760651432367,-1515.661471,0.00024772,2]
[391555837,1760651432375,-831.966543,0.00024772,2]
[391555838,1760651432384,-327.05825672,0.00024772,2]
[391555839,1760651432398,-25715.47125488,0.00024772,2]
[391555840,1760651432408,-1245.7772453,0.00024772,2]
[391555841,1760651432417,-875.55980775,0.0002483,2]
[391555842,1760651432426,-500.0,0.00024932,2]
[391555843,1760651432436,-11858.58739558,0.00025,7]
[391555844,1760651432446,-229.36298253,0.00025,7]
[391555845,1760651432457,-1419.47041,0.00025,2]
[391555846,1760651432466,-475.57272817,0.00025,7]
[391555847,1760651432475,-4362.79005746,0.00025093,2]
[391555848,1760651432485,-2049.0,0.00025194,2]
[391555849,1760651432495,-1812.943,0.00025194,2]
[391555850,1760651432504,-1267.0,0.00025194,2]
[391555851,1760651432514,-749.0,0.00025194,2]
[391555852,1760651432524,-605.0,0.00025194,2]
[391555853,1760651432533,-1034.706,0.00025194,2]
[391555854,1760651432542,-571.0,0.00025194,2]
[391555855,1760651432551,-816.0,0.00025194,2]
[391555856,1760651432561,-6436.0,0.00025194,2]
[391555857,1760651432573,-2056.324,0.00025194,2]
[391555858,1760651432584,-556.0,0.00025194,2]
[391555859,1760651432596,-1196.236,0.00025231,9]
[391555860,1760651432610,-152.49,0.0002528,2]
[391555861,1760651432624,-543.49,0.00025462,2]
[391555862,1760651432636,-150.0,0.00025521,4]
[391555863,1760651432648,-150.0,0.00025521,4]
[391555864,1760651432658,-150.0,0.00025521,4]
[391555865,1760651432669,-150.0,0.00025521,4]
[391555866,1760651432679,-258.76255373,0.00025521,4]
[391555867,1760651432690,-220.93837237,0.00025521,4]
[391555868,1760651432703,-150.0,0.00025521,4]
[391555869,1760651432715,-150.00000001,0.00025521,4]
[391555870,1760651432726,-499.37162239,0.00025526,3]
[391555871,1760651432737,-253.0,0.00025697,2]
[391555872,1760651432748,-4362.79005745,0.00025713,2]
[391555873,1760651432759,-500.0,0.00025773,2]
[391555874,1760651432773,-505.8601711,0.00025785,2]
[391555875,1760651432784,-500.0,0.00025785,2]
[391555876,1760651432796,-500.0,0.00025785,2]
[391555877,1760651432807,-500.0,0.00025785,2]
[391555878,1760651432819,-500.0,0.00025785,2]
[391555879,1760651432831,-500.0,0.00025785,2]
[391555880,1760651432842,-500.0,0.00025785,2]
[391555881,1760651432853,-500.0,0.00025785,2]
[391555882,1760651432864,-500.0,0.00025785,2]
[391555883,1760651432874,-500.0,0.00025785,2]
[391555884,1760651432885,-500.0,0.00025785,2]
[391555885,1760651432895,-500.0,0.00025785,2]
[391555886,1760651432905,-500.0,0.00025785,2]
[391555887,1760651432917,-500.0,0.00025785,2]
[391555888,1760651432930,-500.0,0.00025785,2]
[391555889,1760651432941,-500.0,0.00025785,2]
[391555890,1760651432952,-500.0,0.00025785,2]
[391555891,1760651432963,-500.0,0.00025785,2]
[391555892,1760651432974,-500.0,0.00025785,2]
[391555893,1760651432985,-500.0,0.00025785,2]
[391555894,1760651432996,-530.19817141,0.00025785,2]
[391555895,1760651433009,-500.0,0.00025785,2]
[391555896,1760651433023,-500.0,0.00025785,2]
[391555897,1760651433035,-500.0,0.00025785,2]
[391555898,1760651433047,-500.0,0.00025785,2]
[391555899,1760651433059,-500.0,0.00025785,2]
[391555900,1760651433070,-500.0,0.00025785,2]
[391555901,1760651433084,-500.0,0.00025785,2]
[391555902,1760651433096,-500.0,0.00025785,2]
[391555903,1760651433107,-500.0,0.00025785,2]
[391555904,1760651433119,-500.0,0.00025785,2]
[391555905,1760651433133,-500.0,0.00025785,2]
[391555906,1760651433144,-500.0,0.00025785,2]
[391555907,1760651433156,-500.0,0.00025785,2]
[391555908,1760651433167,-500.0,0.00025785,2]
[391555909,1760651433178,-500.0,0.00025785,2]
[391555910,1760651433189,-500.0,0.00025785,2]
[391555911,1760651433201,-500.0,0.00025785,2]
[391555912,1760651433212,-500.0,0.00025785,2]
[391555913,1760651433223,-500.0,0.00025785,2]
[391555914,1760651433234,-500.0,0.00025785,2]
[391555915,1760651433244,-500.0,0.00025785,2]
[391555916,1760651433256,-500.0,0.00025785,2]
[391555917,1760651433267,-500.0,0.00025785,2]
[391555918,1760651433279,-500.0,0.00025785,2]
[391555919,1760651433292,-500.0,0.00025785,2]
[391555920,1760651433303,-500.0,0.00025785,2]
[391555921,1760651433314,-500.0,0.00025785,2]
[391555922,1760651433324,-500.0,0.00025785,2]
[391555923,1760651433335,-500.0,0.00025785,2]
[391555924,1760651433346,-500.0,0.00025785,2]
[391555925,1760651433357,-500.0,0.00025785,2]
[391555926,1760651433368,-500.0,0.00025785,2]
[391555927,1760651433378,-500.0,0.00025785,2]
[391555928,1760651433388,-500.0,0.00025785,2]
[391555929,1760651433398,-500.0,0.00025785,2]
[391555930,1760651433408,-500.0,0.00025785,2]
[391555931,1760651433418,-500.0,0.00025785,2]
[391555932,1760651433429,-500.0,0.00025785,2]
[391555933,1760651433440,-500.0,0.00025785,2]
[391555934,1760651433453,-500.0,0.00025785,2]
[391555935,1760651433465,-151.0,0.00025786,2]
[391555936,1760651433475,-188.98541686,0.00025786,2]
[391555937,1760651437782,-280.66203912,0.00025786,2]
[391555938,1760651437794,-1000.0,0.00025786,2]
[391555939,1760651437805,-1000.0,0.00025786,2]
[391555940,1760651437816,-156.49790443,0.00025786,2]
[391555941,1760651437827,-151.0,0.00025786,2]
[391555942,1760651437839,-1000.0,0.00025786,2]
[391555943,1760651437850,-1000.0,0.00025786,2]
[391555944,1760651437861,-807.2490239,0.00025786,2]
[391555945,1760651437903,-192.7509761,0.00025786,2]
[391555946,1760651437914,-927.24503103,0.00025786,2]
[391556093,1760651440569,-72.75496897,0.00025786,2]
[391556094,1760651440579,-1000.0,0.00025786,2]
[391556095,1760651440590,-1000.0,0.00025786,2]
[391556096,1760651440600,-1000.0,0.00025786,2]
[391556097,1760651440610,-1000.0,0.00025786,2]
[391556098,1760651440621,-1000.0,0.00025786,2]
[391556099,1760651440632,-767.24503103,0.00025786,2]
[391556100,1760651440645,-232.75496897,0.00025786,2]
[391556101,1760651440655,-1000.0,0.00025786,2]
[391556102,1760651440665,-250.0,0.00025786,2]
[391556103,1760651440675,-250.0,0.00025786,2]
[391556104,1760651440685,-250.0,0.00025786,2]
[391556105,1760651440695,-250.0,0.00025786,2]
[391556106,1760651440704,-250.0,0.00025786,2]
[391556107,1760651440714,-250.0,0.00025786,2]
[391556108,1760651440725,-250.0,0.00025786,2]
[391556109,1760651440735,-250.0,0.00025786,2]
[391556110,1760651440745,-250.0,0.00025786,2]
[391556111,1760651440755,-250.0,0.00025786,2]
[391556112,1760651440765,-250.0,0.00025786,2]
[391556113,1760651440775,-250.0,0.00025786,2]
[391556114,1760651440785,-250.0,0.00025786,2]
[391556115,1760651440795,-1000.0,0.00025786,2]
[391556116,1760651440805,-250.0,0.00025786,2]
[391556117,1760651440815,-250.0,0.00025786,2]
[391556118,1760651440825,-250.0,0.00025786,2]
[391556119,1760651440836,-250.0,0.00025786,2]
[391556120,1760651440846,-250.0,0.00025786,2]
[391556121,1760651440857,-250.0,0.00025786,2]
[391556122,1760651440867,-1000.0,0.00025786,2]
[391556123,1760651440884,-250.0,0.00025786,2]
[391556124,1760651440895,-250.0,0.00025786,2]
[391556125,1760651440904,-250.0,0.00025786,2]
[391556126,1760651440914,-1000.0,0.00025786,2]
[391556127,1760651440924,-250.0,0.00025786,2]
[391556128,1760651440934,-250.0,0.00025786,2]
[391556129,1760651440944,-250.0,0.00025786,2]
[391556130,1760651440954,-1000.0,0.00025786,2]
[391556131,1760651440964,-250.0,0.00025786,2]
[391556132,1760651441826,-250.0,0.00025786,2]
[391556133,1760651441871,-1000.0,0.00025786,2]
[391556134,1760651441886,-250.0,0.00025786,2]
[391556135,1760651441895,-250.0,0.00025786,2]
[391556136,1760651441904,-1000.0,0.00025786,2]
[391556137,1760651441913,-250.0,0.00025786,2]
[391556138,1760651441923,-250.0,0.00025786,2]
[391556139,1760651441932,-1000.0,0.00025786,2]
[391556140,1760651441942,-250.0,0.00025786,2]
[391556141,1760651441952,-250.0,0.00025786,2]
[391556142,1760651441961,-1000.0,0.00025786,2]
[391556143,1760651441970,-250.0,0.00025786,2]
[391556144,1760651441980,-250.0,0.00025786,2]
[391556145,1760651441989,-1000.0,0.00025786,2]
[391556146,1760651441999,-250.0,0.00025786,2]
[391556147,1760651442010,-1000.0,0.00025786,2]
[391556148,1760651442019,-267.46074303,0.00025786,2]
[391556149,1760651442029,-1000.0,0.00025786,2]
[391556150,1760651442039,-1000.0,0.00025786,2]
[391556151,1760651442048,-250.0,0.00025786,2]
[391556152,1760651442059,-250.0,0.00025786,2]
[391556153,1760651442068,-250.0,0.00025786,2]
[391556154,1760651442077,-322.6107,0.00025786,2]
[391556155,1760651442089,-250.0,0.00025786,2]
[391556156,1760651442098,-250.0,0.00025786,2]
[391556157,1760651442107,-250.0,0.00025786,2]
[391556158,1760651442116,-250.0,0.00025786,2]
[391556159,1760651442125,-250.0,0.00025786,2]
[391556160,1760651442135,-250.0,0.00025786,2]
[391556161,1760651442145,-250.0,0.00025786,2]
[391556162,1760651442154,-250.0,0.00025786,2]
[391556163,1760651442163,-250.0,0.00025786,2]
[391556164,1760651442172,-250.0,0.00025786,2]
[391556165,1760651442181,-250.0,0.00025786,2]
[391556166,1760651442190,-250.0,0.00025786,2]
[391556167,1760651442199,-250.0,0.00025786,2]
[391556168,1760651442209,-250.0,0.00025786,2]
[391556169,1760651442218,-250.0,0.00025786,2]
[391556170,1760651442227,-250.0,0.00025786,2]
[391556171,1760651442236,-250.0,0.00025786,2]
[391556172,1760651442246,-250.0,0.00025786,2]
[391556173,1760651442255,-250.0,0.00025786,2]
[391556174,1760651442264,-250.0,0.00025786,2]
[391556175,1760651442274,-250.0,0.00025786,2]
[391556176,1760651442283,-426.01148684,0.000258,2]
[391556177,1760651442292,-17472.6132886,0.00025879,2]
[391556178,1760651442302,-476.81,0.00025886,2]
[391556179,1760651442311,-500.0,0.00025961,2]
[391556180,1760651442320,-24686.3320407,0.0002599,3]
[391556181,1760651442329,-160.45479153,0.0002599,3]
[391556182,1760651442338,-500.0,0.00025999,2]
[391556183,1760651442348,-2600.25103888,0.00026,100]
[391556184,1760651442357,-18734.16,0.00026,7]
[391556185,1760651442366,-1290.67,0.00026008,2]
[391556186,1760651442376,-500.0,0.00026098,2]
[391556187,1760651442385,-500.0,0.00026098,2]
[391556188,1760651442395,-500.0,0.00026098,2]
[391556189,1760651442404,-500.0,0.00026098,2]
[391556190,1760651442413,-500.0,0.00026098,2]
[391556191,1760651442423,-500.0,0.00026098,2]
[391556192,1760651442432,-500.0,0.00026098,2]
[391556193,1760651442441,-500.0,0.00026098,2]
[391556194,1760651442451,-500.0,0.00026098,2]
[391556195,1760651442460,-518.205,0.00026098,2]
[391556196,1760651442469,-500.0,0.00026099,2]
[391556197,1760651442479,-485.72163444,0.00026099,2]
[391556198,1760651442488,-543.49,0.00026169,2]
[391556199,1760651442497,-2000.0,0.00026301,13]
[391556200,1760651442506,-2000.0,0.00026301,13]
[391556201,1760651442515,-2000.0,0.00026301,13]
[391556202,1760651442524,-317.8685126,0.00026301,13]
[391556203,1760651442533,-500.0,0.00026321,2]
[391556204,1760651442542,-4362.79005745,0.00026332,2]
[391556205,1760651442551,-563.78167729,0.00026358,5]
[391556206,1760651442560,-150.0,0.00026466,4]
[391556207,1760651442570,-441.88,0.00026676,2]
[391556208,1760651442579,-4516.51566232,0.00026678,2]
[391556210,1760651442588,-24686.3320407,0.00026704,3]
[391556211,1760651442598,-169.96504748,0.00026838,2]
[391556213,1760651442607,-543.49,0.00026877,2]
[391556214,1760651442616,-150.0,0.00026938,4]
[391556215,1760651442625,-150.0,0.00026938,4]
[391556216,1760651442635,-4362.79005745,0.00026952,2]
[391556217,1760651442644,-18734.16,0.00027,7]
[391556218,1760651442655,-1419.47042,0.00027,2]
[391556219,1760651442664,-7118.0,0.00027,3]
[391556220,1760651442673,-24686.3320407,0.00027058,3]
[391556221,1760651442683,-2468.07,0.00027068,2]
[391556222,1760651442692,-4516.51566232,0.00027122,2]
[391556223,1760651442702,-6013.98,0.00027135,2]
[391556225,1760651442711,-168.0,0.00027154,7]
[391556226,1760651442721,-277.35679052,0.00027155,2]
[391556227,1760651442730,-334.5472959,0.00027155,2]
[391556228,1760651442739,-427.0,0.00027155,13]
[391556229,1760651442748,-200.0,0.00027155,2]
[391556230,1760651442757,-200.0,0.00027155,2]
[391556231,1760651442766,-200.0,0.00027155,2]
[391556232,1760651442776,-200.0,0.00027155,2]
[391556233,1760651442785,-200.0,0.00027155,2]
[391556234,1760651442794,-200.0,0.00027155,2]
[391556235,1760651442803,-200.0,0.00027155,2]
[391556236,1760651442812,-200.0,0.00027155,2]
[391556237,1760651442821,-200.0,0.00027155,2]
[391556238,1760651442831,-200.0,0.00027155,2]
[391556239,1760651442840,-200.0,0.00027155,2]
[391556240,1760651442849,-200.0,0.00027155,2]
[391556241,1760651442859,-200.0,0.00027155,2]
[391556242,1760651442868,-200.0,0.00027155,2]
[391556243,1760651442877,-200.0,0.00027155,2]
[391556244,1760651442887,-200.0,0.00027155,2]
[391556245,1760651442896,-200.0,0.00027155,2]
[391556247,1760651442906,-200.0,0.00027155,2]
[391556249,1760651442916,-200.0,0.00027155,2]
[391556250,1760651442925,-200.0,0.00027155,2]
[391556252,1760651442935,-200.0,0.00027155,2]
[391556254,1760651442944,-200.0,0.00027155,2]
[391556256,1760651442953,-200.0,0.00027155,2]
[391556258,1760651442962,-200.0,0.00027155,2]
[391556259,1760651442971,-200.0,0.00027155,2]
[391556260,1760651442981,-200.0,0.00027155,2]